[Event "Titled Tuesday Blitz November 14 Early 2023"]
[White "Oparin, Grigoriy"]
[Black "Sydoryka, Vladyslav"]
[WhiteFideId "24125890"]
[BlackFideId "14145928"]
[WhiteElo "3004"]
[BlackElo "2668"]
[Result "1-0"]
[Round "8"]
[TimeControl "180+1"]
[Date "2023.11.14"]
[WhiteClock "0:00:18"]
[BlackClock "0:00:00"]
[Board "9"]

1. d4 {[%clk 0:03:00]}  Nf6 {[%clk 0:02:56]} 2. c4 {[%clk 0:03:01]}  e6 {[%clk 0:02:56]} 3. Nc3 {[%clk 0:03:02]}  Bb4 {[%clk 0:02:56]} 4. e3 {[%clk 0:03:03]}  O-O {[%clk 0:02:56]} 5. Bd3 {[%clk 0:03:03]}  d5 {[%clk 0:02:57]} 6. Nf3 {[%clk 0:03:03]}  dxc4 {[%clk 0:02:57]} 7. Bxc4 {[%clk 0:03:03]}  c5 {[%clk 0:02:58]} 8. O-O {[%clk 0:03:03]}  cxd4 {[%clk 0:02:58]} 9. exd4 {[%clk 0:03:03]}  b6 {[%clk 0:02:59]} 10. Bg5 {[%clk 0:02:57]}  h6 {[%clk 0:02:58]} 11. Bh4 {[%clk 0:02:56]}  Bb7 {[%clk 0:02:59]} 12. Qe2 {[%clk 0:02:56]}  Nbd7 {[%clk 0:02:58]} 13. Ne5 {[%clk 0:02:44]}  Nxe5 {[%clk 0:02:55]} 14. dxe5 {[%clk 0:02:42]}  Qd4 {[%clk 0:02:56]} 15. Bxf6 {[%clk 0:02:25]}  gxf6 {[%clk 0:02:55]} 16. exf6 {[%clk 0:02:25]}  Bxc3 {[%clk 0:02:54]} 17. bxc3 {[%clk 0:02:26]}  Qxf6 {[%clk 0:02:54]} 18. Rac1 {[%clk 0:02:15]}  Rac8 {[%clk 0:02:53]} 19. Ba6 {[%clk 0:02:06]}  Bxa6 {[%clk 0:02:52]} 20. Qxa6 {[%clk 0:02:07]}  Rc7 {[%clk 0:02:38]} 21. h3 {[%clk 0:02:05]}  Rfc8 {[%clk 0:02:38]} 22. Rfd1 {[%clk 0:02:05]}  Qg5 {[%clk 0:02:16]} 23. c4 {[%clk 0:01:54]}  Qa5 {[%clk 0:00:49]} 24. Qxa5 {[%clk 0:01:53]}  bxa5 {[%clk 0:00:49]} 25. Rd4 {[%clk 0:01:53]}  Kg7 {[%clk 0:00:36]} 26. Rc3 {[%clk 0:01:53]}  f5 {[%clk 0:00:34]} 27. f4 {[%clk 0:01:45]}  Kf6 {[%clk 0:00:32]} 28. Kf2 {[%clk 0:01:46]}  h5 {[%clk 0:00:27]} 29. g3 {[%clk 0:01:38]}  Rb8 {[%clk 0:00:19]} 30. Ra3 {[%clk 0:01:23]}  Rc5 {[%clk 0:00:17]} 31. Ke3 {[%clk 0:01:22]}  Rb4 {[%clk 0:00:16]} 32. Kd3 {[%clk 0:01:20]}  Rb2 {[%clk 0:00:14]} 33. Kc3 {[%clk 0:01:19]}  Rg2 {[%clk 0:00:14]} 34. Rd3 {[%clk 0:01:19]}  Rg1 {[%clk 0:00:08]} 35. Kd4 {[%clk 0:01:17]}  Rc8 {[%clk 0:00:07]} 36. h4 {[%clk 0:01:04]}  Rc1 {[%clk 0:00:05]} 37. Rac3 {[%clk 0:01:03]}  Re1 {[%clk 0:00:03]} 38. Re3 {[%clk 0:00:42]}  Rd1+ {[%clk 0:00:04]} 39. Red3 {[%clk 0:00:42]}  Re1 {[%clk 0:00:04]} 40. Rf3 {[%clk 0:00:42]}  Re4+ {[%clk 0:00:03]} 41. Kd3 {[%clk 0:00:42]}  Rd8+ {[%clk 0:00:03]} 42. Kc2 {[%clk 0:00:40]}  Rc8 {[%clk 0:00:04]} 43. c5 {[%clk 0:00:40]}  Rd4 {[%clk 0:00:02]} 44. Rfd3 {[%clk 0:00:39]}  Rxd3 {[%clk 0:00:01]} 45. Kxd3 {[%clk 0:00:40]}  Ke7 {[%clk 0:00:02]} 46. Kc4 {[%clk 0:00:40]}  Rb8 {[%clk 0:00:02]} 47. Rb3 {[%clk 0:00:38]}  Rxb3 {[%clk 0:00:01]} 48. axb3 {[%clk 0:00:33]}  a6 {[%clk 0:00:02]} 49. Kd4 {[%clk 0:00:26]}  Kd7 {[%clk 0:00:02]} 50. Ke5 {[%clk 0:00:27]}  Kc6 {[%clk 0:00:03]} 51. Kxe6 {[%clk 0:00:27]}  Kxc5 {[%clk 0:00:04]} 52. Kxf5 {[%clk 0:00:28]}  Kb4 {[%clk 0:00:04]} 53. Kg6 {[%clk 0:00:22]}  Kxb3 {[%clk 0:00:04]} 54. f5 {[%clk 0:00:23]}  a4 {[%clk 0:00:05]} 55. f6 {[%clk 0:00:24]}  a3 {[%clk 0:00:06]} 56. f7 {[%clk 0:00:25]}  a2 {[%clk 0:00:07]} 57. f8=Q {[%clk 0:00:25]}  a1=Q {[%clk 0:00:08]} 58. Qf3+ {[%clk 0:00:20]}  Kb4 {[%clk 0:00:08]} 59. Qxh5 {[%clk 0:00:19]}  Qb1+ {[%clk 0:00:03]} 60. Qf5 {[%clk 0:00:19]}  Qg1 {[%clk 0:00:01]} 61. Qf4+ {[%clk 0:00:18]}  Kb5 {[%clk 0:00:01]} 62. h5 {[%clk 0:00:18]}  Qb6+ {[%clk 0:00:01]} 63. Qf6 {[%clk 0:00:19]}  Qe3 {[%clk 0:00:00]} 64. Qg5+ {[%clk 0:00:18]} 1-0


[Site "https://www.chess.com"]

[Event "Titled Tuesday Blitz November 14 Early 2023"]
[White "Chigaev, Maksim"]
[Black "Dubov, Daniil"]
[WhiteFideId "4108116"]
[BlackFideId "24126055"]
[WhiteElo "2906"]
[BlackElo "3120"]
[Result "1-0"]
[Round "8"]
[TimeControl "180+1"]
[Date "2023.11.14"]
[WhiteClock "0:00:02"]
[BlackClock "0:00:00"]
[Board "10"]

1. e4 {[%clk 0:03:00]}  c5 {[%clk 0:02:59]} 2. Ne2 {[%clk 0:02:58]}  g6 {[%clk 0:02:57]} 3. g3 {[%clk 0:02:58]}  Bg7 {[%clk 0:02:57]} 4. Bg2 {[%clk 0:02:58]}  Nc6 {[%clk 0:02:57]} 5. Nbc3 {[%clk 0:02:55]}  d6 {[%clk 0:02:56]} 6. d3 {[%clk 0:02:55]}  e5 {[%clk 0:02:55]} 7. f4 {[%clk 0:02:49]}  Nge7 {[%clk 0:02:54]} 8. O-O {[%clk 0:02:48]}  h5 {[%clk 0:02:54]} 9. h3 {[%clk 0:02:45]}  Be6 {[%clk 0:02:53]} 10. Nd5 {[%clk 0:02:44]}  Qd7 {[%clk 0:02:52]} 11. Kh2 {[%clk 0:02:45]}  f5 {[%clk 0:02:41]} 12. fxe5 {[%clk 0:02:38]}  dxe5 {[%clk 0:02:40]} 13. Nxe7 {[%clk 0:02:34]}  Nxe7 {[%clk 0:02:40]} 14. h4 {[%clk 0:02:25]}  c4 {[%clk 0:02:11]} 15. dxc4 {[%clk 0:02:10]}  Bxc4 {[%clk 0:01:33]} 16. Qxd7+ {[%clk 0:02:09]}  Kxd7 {[%clk 0:01:34]} 17. Rd1+ {[%clk 0:02:09]}  Ke6 {[%clk 0:01:16]} 18. Nc3 {[%clk 0:02:06]}  Bh6 {[%clk 0:01:04]} 19. Bxh6 {[%clk 0:01:46]}  Rxh6 {[%clk 0:01:05]} 20. b3 {[%clk 0:01:39]}  Ba6 {[%clk 0:01:04]} 21. Na4 {[%clk 0:01:40]}  Rc8 {[%clk 0:01:02]} 22. c4 {[%clk 0:01:38]}  b5 {[%clk 0:00:39]} 23. Nc3 {[%clk 0:01:06]}  bxc4 {[%clk 0:00:35]} 24. b4 {[%clk 0:01:06]}  Rb8 {[%clk 0:00:25]} 25. a3 {[%clk 0:00:44]}  Rhh8 {[%clk 0:00:23]} 26. Na4 {[%clk 0:00:38]}  Bb5 {[%clk 0:00:10]} 27. Nc5+ {[%clk 0:00:38]}  Kf7 {[%clk 0:00:11]} 28. a4 {[%clk 0:00:38]}  Be8 {[%clk 0:00:07]} 29. b5 {[%clk 0:00:39]}  Rc8 {[%clk 0:00:06]} 30. Nb7 {[%clk 0:00:39]}  Kg7 {[%clk 0:00:05]} 31. Rac1 {[%clk 0:00:35]}  Rc7 {[%clk 0:00:05]} 32. Nd6 {[%clk 0:00:24]}  Bf7 {[%clk 0:00:05]} 33. Rc3 {[%clk 0:00:15]}  Be6 {[%clk 0:00:05]} 34. Re1 {[%clk 0:00:07]}  f4 {[%clk 0:00:04]} 35. gxf4 {[%clk 0:00:06]}  exf4 {[%clk 0:00:05]} 36. e5 {[%clk 0:00:06]}  Rb8 {[%clk 0:00:04]} 37. Re4 {[%clk 0:00:05]}  Bd5 {[%clk 0:00:02]} 38. Rxf4 {[%clk 0:00:05]}  Bxg2 {[%clk 0:00:02]} 39. Rf7+ {[%clk 0:00:05]}  Kh6 {[%clk 0:00:02]} 40. Kxg2 {[%clk 0:00:06]}  Nd5 {[%clk 0:00:02]} 41. Rxc7 {[%clk 0:00:05]}  Nxc7 {[%clk 0:00:03]} 42. Rxc4 {[%clk 0:00:06]}  Ne6 {[%clk 0:00:03]} 43. Nf7+ {[%clk 0:00:03]}  Kg7 {[%clk 0:00:02]} 44. Ng5 {[%clk 0:00:03]}  Nxg5 {[%clk 0:00:01]} 45. hxg5 {[%clk 0:00:04]}  Rb7 {[%clk 0:00:02]} 46. Kg3 {[%clk 0:00:04]}  Kf7 {[%clk 0:00:02]} 47. Rc6 {[%clk 0:00:04]}  Re7 {[%clk 0:00:01]} 48. Kf4 {[%clk 0:00:04]}  h4 {[%clk 0:00:01]} 49. Kg4 {[%clk 0:00:04]}  Rxe5 {[%clk 0:00:01]} 50. Ra6 {[%clk 0:00:03]}  Re4+ {[%clk 0:00:01]} 51. Kh3 {[%clk 0:00:03]}  Rb4 {[%clk 0:00:01]} 52. Rxa7+ {[%clk 0:00:03]}  Ke6 {[%clk 0:00:02]} 53. Ra6+ {[%clk 0:00:01]}  Kf5 {[%clk 0:00:00]} 54. b6 {[%clk 0:00:02]} 1-0


[Site "https://www.chess.com"]

[Event "Titled Tuesday Blitz November 14 Early 2023"]
[White "Steinberg, Nitzan"]
[Black "Gholami Orimi, Mahdi"]
[WhiteFideId "2801795"]
[BlackFideId "12558486"]
[WhiteElo "2895"]
[BlackElo "2965"]
[Result "1-0"]
[Round "8"]
[TimeControl "180+1"]
[Date "2023.11.14"]
[WhiteClock "0:00:14"]
[BlackClock "0:00:12"]
[Board "12"]

1. e4 {[%clk 0:03:00]}  e5 {[%clk 0:02:59]} 2. Nf3 {[%clk 0:03:01]}  Nc6 {[%clk 0:03:00]} 3. Bb5 {[%clk 0:03:00]}  a6 {[%clk 0:03:00]} 4. Ba4 {[%clk 0:03:00]}  Nf6 {[%clk 0:03:00]} 5. O-O {[%clk 0:03:00]}  b5 {[%clk 0:03:00]} 6. Bb3 {[%clk 0:03:00]}  Bc5 {[%clk 0:03:01]} 7. a4 {[%clk 0:02:59]}  Rb8 {[%clk 0:03:01]} 8. c3 {[%clk 0:03:00]}  d6 {[%clk 0:03:01]} 9. d4 {[%clk 0:03:00]}  Bb6 {[%clk 0:03:01]} 10. a5 {[%clk 0:02:58]}  Ba7 {[%clk 0:03:02]} 11. Be3 {[%clk 0:02:52]}  O-O {[%clk 0:02:53]} 12. Re1 {[%clk 0:02:46]}  Bg4 {[%clk 0:02:46]} 13. d5 {[%clk 0:02:38]}  Bxe3 {[%clk 0:02:45]} 14. fxe3 {[%clk 0:02:26]}  Ne7 {[%clk 0:02:45]} 15. Nbd2 {[%clk 0:02:24]}  Ng6 {[%clk 0:02:44]} 16. h3 {[%clk 0:02:20]}  Bd7 {[%clk 0:02:44]} 17. Rf1 {[%clk 0:02:20]}  h6 {[%clk 0:02:39]} 18. Qe1 {[%clk 0:02:19]}  Kh7 {[%clk 0:02:22]} 19. Qg3 {[%clk 0:02:04]}  c5 {[%clk 0:02:18]} 20. Bc2 {[%clk 0:01:58]}  c4 {[%clk 0:02:17]} 21. Qe1 {[%clk 0:01:37]}  Qc7 {[%clk 0:02:14]} 22. Bd1 {[%clk 0:01:35]}  Qc5 {[%clk 0:02:06]} 23. Kh2 {[%clk 0:01:30]}  b4 {[%clk 0:02:04]} 24. Be2 {[%clk 0:01:20]}  bxc3 {[%clk 0:02:04]} 25. bxc3 {[%clk 0:01:20]}  Qxe3 {[%clk 0:02:03]} 26. Bxc4 {[%clk 0:01:19]}  Qxc3 {[%clk 0:02:00]} 27. Bxa6 {[%clk 0:01:02]}  Ra8 {[%clk 0:02:01]} 28. Qe2 {[%clk 0:01:00]}  Nf4 {[%clk 0:01:59]} 29. Qc4 {[%clk 0:00:59]}  Qxc4 {[%clk 0:01:16]} 30. Bxc4 {[%clk 0:00:59]}  Ra7 {[%clk 0:01:17]} 31. Rfb1 {[%clk 0:00:56]}  Rfa8 {[%clk 0:01:14]} 32. a6 {[%clk 0:00:56]}  Ne8 {[%clk 0:00:59]} 33. Rb6 {[%clk 0:00:54]}  Ng6 {[%clk 0:00:51]} 34. Ne1 {[%clk 0:00:26]}  Ne7 {[%clk 0:00:49]} 35. Nd3 {[%clk 0:00:24]}  Nc8 {[%clk 0:00:29]} 36. Rb7 {[%clk 0:00:25]}  Nc7 {[%clk 0:00:20]} 37. Nb4 {[%clk 0:00:25]}  Be8 {[%clk 0:00:20]} 38. Nb3 {[%clk 0:00:20]}  Ne7 {[%clk 0:00:14]} 39. Na5 {[%clk 0:00:15]}  Rxb7 {[%clk 0:00:03]} 40. axb7 {[%clk 0:00:15]}  Rb8 {[%clk 0:00:04]} 41. Rc1 {[%clk 0:00:11]}  Kg6 {[%clk 0:00:03]} 42. Bd3 {[%clk 0:00:11]}  Nb5 {[%clk 0:00:03]} 43. Bxb5 {[%clk 0:00:07]}  Bxb5 {[%clk 0:00:04]} 44. Rc7 {[%clk 0:00:05]}  Kf6 {[%clk 0:00:03]} 45. Rxe7 {[%clk 0:00:05]}  Kxe7 {[%clk 0:00:04]} 46. Nbc6+ {[%clk 0:00:05]}  Bxc6 {[%clk 0:00:04]} 47. Nxc6+ {[%clk 0:00:05]}  Kd7 {[%clk 0:00:05]} 48. Nxb8+ {[%clk 0:00:06]}  Kc7 {[%clk 0:00:06]} 49. Nc6 {[%clk 0:00:05]}  Kxb7 {[%clk 0:00:05]} 50. Nd8+ {[%clk 0:00:05]}  Kc7 {[%clk 0:00:06]} 51. Nxf7 {[%clk 0:00:06]}  Kd7 {[%clk 0:00:06]} 52. Nh8 {[%clk 0:00:04]}  g5 {[%clk 0:00:04]} 53. Nf7 {[%clk 0:00:04]}  Ke7 {[%clk 0:00:03]} 54. Nxh6 {[%clk 0:00:04]}  Kf6 {[%clk 0:00:04]} 55. Nf5 {[%clk 0:00:05]}  g4 {[%clk 0:00:04]} 56. hxg4 {[%clk 0:00:05]}  Kg5 {[%clk 0:00:05]} 57. Kg3 {[%clk 0:00:06]}  Kf6 {[%clk 0:00:04]} 58. Nxd6 {[%clk 0:00:07]}  Kg6 {[%clk 0:00:05]} 59. Nc4 {[%clk 0:00:08]}  Kg5 {[%clk 0:00:06]} 60. Nxe5 {[%clk 0:00:08]}  Kf6 {[%clk 0:00:06]} 61. Nf3 {[%clk 0:00:09]}  Ke7 {[%clk 0:00:07]} 62. Kf4 {[%clk 0:00:10]}  Kd6 {[%clk 0:00:08]} 63. g5 {[%clk 0:00:11]}  Ke7 {[%clk 0:00:09]} 64. g4 {[%clk 0:00:11]}  Kf7 {[%clk 0:00:10]} 65. d6 {[%clk 0:00:11]}  Kg7 {[%clk 0:00:11]} 66. d7 {[%clk 0:00:12]}  Kg6 {[%clk 0:00:11]} 67. d8=Q {[%clk 0:00:12]}  Kh7 {[%clk 0:00:12]} 68. Qf6 {[%clk 0:00:11]}  Kg8 {[%clk 0:00:12]} 69. Qe7 {[%clk 0:00:11]}  Kh8 {[%clk 0:00:13]} 70. Ne5 {[%clk 0:00:12]}  Kg8 {[%clk 0:00:13]} 71. Qf7+ {[%clk 0:00:13]}  Kh8 {[%clk 0:00:12]} 72. Ng6# {[%clk 0:00:14]} 1-0


[Site "https://www.chess.com"]

[Event "Titled Tuesday Blitz November 14 Early 2023"]
[White "Galchenko, Matvey"]
[Black "Timofeev, Artyom"]
[WhiteFideId "24175480"]
[BlackFideId "4140419"]
[WhiteElo "2946"]
[BlackElo "2843"]
[Result "1-0"]
[Round "8"]
[TimeControl "180+1"]
[Date "2023.11.14"]
[WhiteClock "0:00:09"]
[BlackClock "0:00:01"]
[Board "14"]

1. e4 {[%clk 0:02:57]}  c5 {[%clk 0:02:59]} 2. Nc3 {[%clk 0:02:56]}  Nc6 {[%clk 0:02:56]} 3. Bb5 {[%clk 0:02:56]}  Nd4 {[%clk 0:02:56]} 4. Nf3 {[%clk 0:02:56]}  e6 {[%clk 0:02:56]} 5. Bd3 {[%clk 0:02:49]}  Ne7 {[%clk 0:02:52]} 6. O-O {[%clk 0:02:38]}  Nec6 {[%clk 0:02:51]} 7. Nxd4 {[%clk 0:02:27]}  Nxd4 {[%clk 0:02:44]} 8. b3 {[%clk 0:02:16]}  Be7 {[%clk 0:02:42]} 9. Bb2 {[%clk 0:02:16]}  O-O {[%clk 0:02:42]} 10. f4 {[%clk 0:02:15]}  f5 {[%clk 0:02:40]} 11. Ne2 {[%clk 0:02:12]}  Nc6 {[%clk 0:02:19]} 12. Ng3 {[%clk 0:02:00]}  d5 {[%clk 0:02:14]} 13. exf5 {[%clk 0:01:36]}  exf5 {[%clk 0:02:14]} 14. Qf3 {[%clk 0:01:37]}  Bf6 {[%clk 0:02:01]} 15. Bxf6 {[%clk 0:01:35]}  Rxf6 {[%clk 0:02:01]} 16. Rae1 {[%clk 0:01:32]}  g6 {[%clk 0:01:45]} 17. Qe3 {[%clk 0:01:23]}  b6 {[%clk 0:01:32]} 18. Qe8+ {[%clk 0:01:13]}  Qxe8 {[%clk 0:01:30]} 19. Rxe8+ {[%clk 0:01:14]}  Rf8 {[%clk 0:01:30]} 20. Rfe1 {[%clk 0:01:08]}  Bd7 {[%clk 0:01:28]} 21. Rxa8 {[%clk 0:01:07]}  Rxa8 {[%clk 0:01:27]} 22. Bb5 {[%clk 0:01:07]}  Kf7 {[%clk 0:01:22]} 23. Kf2 {[%clk 0:00:57]}  a6 {[%clk 0:01:19]} 24. Bxc6 {[%clk 0:00:57]}  Bxc6 {[%clk 0:01:20]} 25. d4 {[%clk 0:00:58]}  a5 {[%clk 0:01:13]} 26. a4 {[%clk 0:00:51]}  Rc8 {[%clk 0:00:56]} 27. Re5 {[%clk 0:00:34]}  Bb7 {[%clk 0:00:55]} 28. Ne2 {[%clk 0:00:35]}  c4 {[%clk 0:00:50]} 29. Ke3 {[%clk 0:00:35]}  Kf6 {[%clk 0:00:36]} 30. Kd2 {[%clk 0:00:31]}  cxb3 {[%clk 0:00:35]} 31. cxb3 {[%clk 0:00:31]}  Bc6 {[%clk 0:00:35]} 32. Nc3 {[%clk 0:00:30]}  Rd8 {[%clk 0:00:35]} 33. g3 {[%clk 0:00:28]}  Rd6 {[%clk 0:00:33]} 34. Nd1 {[%clk 0:00:20]}  Rd8 {[%clk 0:00:29]} 35. Ne3 {[%clk 0:00:18]}  h5 {[%clk 0:00:27]} 36. h4 {[%clk 0:00:16]}  Rd6 {[%clk 0:00:25]} 37. Nc2 {[%clk 0:00:12]}  Rd8 {[%clk 0:00:24]} 38. Ne1 {[%clk 0:00:12]}  Rc8 {[%clk 0:00:22]} 39. Nf3 {[%clk 0:00:10]}  b5 {[%clk 0:00:12]} 40. axb5 {[%clk 0:00:11]}  Bxb5 {[%clk 0:00:13]} 41. Rxd5 {[%clk 0:00:11]}  Bc6 {[%clk 0:00:12]} 42. Rc5 {[%clk 0:00:12]}  Bb7 {[%clk 0:00:05]} 43. Rxc8 {[%clk 0:00:11]}  Bxc8 {[%clk 0:00:06]} 44. Ne5 {[%clk 0:00:10]}  Be6 {[%clk 0:00:06]} 45. Kc3 {[%clk 0:00:09]}  Bd5 {[%clk 0:00:07]} 46. Nc4 {[%clk 0:00:09]}  Ke6 {[%clk 0:00:04]} 47. Nxa5 {[%clk 0:00:09]}  Kd6 {[%clk 0:00:01]} 48. Nc4+ {[%clk 0:00:09]} 1-0


[Site "https://www.chess.com"]

[Event "Titled Tuesday Blitz November 14 Early 2023"]
[White "Baskakov, Egor"]
[Black "Samunenkov, Ihor"]
[WhiteFideId "24197866"]
[BlackFideId "14187086"]
[WhiteElo "2915"]
[BlackElo "2774"]
[Result "1-0"]
[Round "8"]
[TimeControl "180+1"]
[Date "2023.11.14"]
[WhiteClock "0:00:55"]
[BlackClock "0:00:20"]
[Board "15"]

1. e4 {[%clk 0:03:00]}  c5 {[%clk 0:02:58]} 2. Nf3 {[%clk 0:03:00]}  Nc6 {[%clk 0:02:58]} 3. Nc3 {[%clk 0:03:00]}  g6 {[%clk 0:02:58]} 4. d4 {[%clk 0:03:01]}  cxd4 {[%clk 0:02:59]} 5. Nxd4 {[%clk 0:03:01]}  Bg7 {[%clk 0:03:00]} 6. Nde2 {[%clk 0:03:02]}  Nf6 {[%clk 0:02:57]} 7. g3 {[%clk 0:03:03]}  O-O {[%clk 0:02:58]} 8. Bg2 {[%clk 0:03:03]}  d6 {[%clk 0:02:58]} 9. h3 {[%clk 0:03:04]}  Rb8 {[%clk 0:02:57]} 10. a4 {[%clk 0:03:04]}  a6 {[%clk 0:02:53]} 11. O-O {[%clk 0:03:04]}  b5 {[%clk 0:02:53]} 12. axb5 {[%clk 0:03:05]}  axb5 {[%clk 0:02:54]} 13. Be3 {[%clk 0:03:06]}  e6 {[%clk 0:02:42]} 14. Nd4 {[%clk 0:03:01]}  Nxd4 {[%clk 0:02:36]} 15. Bxd4 {[%clk 0:03:02]}  b4 {[%clk 0:02:33]} 16. e5 {[%clk 0:02:06]}  bxc3 {[%clk 0:02:08]} 17. exf6 {[%clk 0:02:06]}  Bxf6 {[%clk 0:02:09]} 18. bxc3 {[%clk 0:02:05]}  d5 {[%clk 0:01:58]} 19. Qd2 {[%clk 0:01:48]}  Re8 {[%clk 0:01:51]} 20. Rfd1 {[%clk 0:01:44]}  Bb7 {[%clk 0:01:46]} 21. Ra7 {[%clk 0:01:40]}  Ba8 {[%clk 0:01:27]} 22. Rda1 {[%clk 0:01:35]}  Bxd4 {[%clk 0:01:11]} 23. Qxd4 {[%clk 0:01:27]}  Rc8 {[%clk 0:01:02]} 24. c4 {[%clk 0:01:16]}  Rxc4 {[%clk 0:00:52]} 25. Qxc4 {[%clk 0:01:15]}  dxc4 {[%clk 0:00:52]} 26. Rxa8 {[%clk 0:01:15]}  Kg7 {[%clk 0:00:40]} 27. Rxd8 {[%clk 0:01:13]}  Rxd8 {[%clk 0:00:41]} 28. Bf1 {[%clk 0:01:13]}  c3 {[%clk 0:00:40]} 29. Ra3 {[%clk 0:01:12]}  Rc8 {[%clk 0:00:40]} 30. f4 {[%clk 0:01:11]}  Kf6 {[%clk 0:00:39]} 31. Kf2 {[%clk 0:01:12]}  g5 {[%clk 0:00:37]} 32. fxg5+ {[%clk 0:01:10]}  Kxg5 {[%clk 0:00:38]} 33. Ra7 {[%clk 0:01:10]}  Rd8 {[%clk 0:00:34]} 34. Ke3 {[%clk 0:01:07]}  Rd2 {[%clk 0:00:30]} 35. Bd3 {[%clk 0:01:07]}  Kf6 {[%clk 0:00:25]} 36. Rc7 {[%clk 0:01:06]}  Rg2 {[%clk 0:00:26]} 37. Kf3 {[%clk 0:01:06]}  Rh2 {[%clk 0:00:24]} 38. h4 {[%clk 0:01:06]}  Ke5 {[%clk 0:00:24]} 39. Rxc3 {[%clk 0:01:06]}  f5 {[%clk 0:00:24]} 40. Rc5+ {[%clk 0:01:04]}  Kf6 {[%clk 0:00:25]} 41. Rc6 {[%clk 0:01:03]}  h5 {[%clk 0:00:25]} 42. Bc4 {[%clk 0:00:57]}  Rxc2 {[%clk 0:00:24]} 43. Rxe6+ {[%clk 0:00:57]}  Kg7 {[%clk 0:00:25]} 44. Bd5 {[%clk 0:00:57]}  Rc5 {[%clk 0:00:20]} 45. Rd6 {[%clk 0:00:55]} 1-0


[Site "https://www.chess.com"]